fUSD/lending_fUSD_20240329
["ID","MTS","AMOUNT","RATE_DAILY","PERIOD"]
[320933032,1711716660790,-623.33,0.00053863,120]
[320933033,1711716660799,-592.42,0.00053863,120]
[320933034,1711716660808,-500.0,0.00053863,120]
[320933035,1711716660817,-500.0,0.00053863,120]
[320933036,1711716660826,-500.0,0.00053863,120]
[320933037,1711716660835,-500.0,0.00053863,120]
[320933038,1711716660845,-691.21,0.00053863,120]
[320933039,1711716660854,-720.43,0.00053863,120]
[320933040,1711716660863,-3679.89,0.00053863,120]
[320933041,1711716660872,-874.18,0.00053863,120]
[320933042,1711716660881,-523.45,0.00053863,120]
[320933043,1711716660891,-2750.62,0.00053863,120]
[320933044,1711716660900,-500.0,0.00053863,120]
[320933045,1711716660909,-1000.0,0.00053929,120]
[320933046,1711716660918,-1782.96,0.00053972,120]
[320933047,1711716660927,-903.7,0.00053972,120]
[320933048,1711716660937,-500.0,0.00053972,120]
[320933049,1711716660946,-606.26,0.00053972,120]
[320933050,1711716660956,-1141.6,0.00053972,120]
[320933051,1711716660965,-809.83,0.00053972,120]
[320933052,1711716660974,-502.1,0.00053972,120]
[320933053,1711716660983,-4769.79,0.00053972,120]
[320933054,1711716660995,-650.47,0.00053972,120]
[320933055,1711716661004,-528.43,0.00053972,120]
[320933056,1711716661013,-534.25,0.00053972,21]
[320933057,1711716661023,-507.42722408,0.00053972,120]
[320933058,1711716661033,-500.0,0.00053972,120]
[320933059,1711716661042,-500.0,0.00053972,120]
[320933060,1711716661051,-500.0,0.00053972,120]
[320933061,1711716661060,-1337.23,0.00053972,120]
[320933062,1711716661070,-611.25847607,0.00053972,120]
[320933063,1711716661078,-576.41,0.00053972,120]
[320933064,1711716661088,-935.52,0.00053972,120]
[320933065,1711716661097,-609.11,0.00053972,120]
[320933066,1711716661107,-500.0,0.00053972,120]
[320933067,1711716661116,-531.05,0.00053972,120]
[320933068,1711716661126,-379.12615915,0.00053972,120]
[320933069,1711716661135,-731.96,0.00053972,120]
[320933070,1711716661144,-1153.11,0.00053972,120]
[320933071,1711716661153,-999.05,0.00053972,120]
[320933072,1711716661162,-999.22,0.00053972,120]
[320933073,1711716661171,-1603.08,0.00053972,120]
[320933074,1711716661180,-641.15,0.00053972,120]
[320933075,1711716661190,-616.6,0.00053972,120]
[320933076,1711716661199,-1045.1,0.00053972,120]
[320933077,1711716661209,-500.0,0.00053972,120]
[320933078,1711716661218,-505.71,0.00053972,120]
[320933079,1711716661227,-678.59,0.00053972,120]
[320933080,1711716661236,-581.67,0.00053972,120]
[320933081,1711716661247,-500.0,0.00053972,120]
[320933082,1711716661256,-732.12,0.00053972,120]
[320933083,1711716661266,-509.86,0.00053972,120]
[320933084,1711716661276,-1070.64,0.00053972,120]
[320933085,1711716661285,-779.78,0.00053972,120]
[320933086,1711716661294,-500.0,0.00053972,120]
[320933087,1711716661304,-1366.39,0.00053972,120]
[320933088,1711716661314,-566.51,0.00053972,120]
[320933089,1711716661323,-500.0,0.00053972,120]
[320933090,1711716661335,-1473.55,0.00053972,120]
[320933091,1711716661344,-541.19,0.00053972,120]
[320933092,1711716661353,-542.47,0.00053972,120]
[320933093,1711716661362,-641.96936392,0.00053972,120]
[320933094,1711716661373,-520.06,0.00053972,120]
[320933095,1711716661383,-500.0,0.00053972,120]
[320933096,1711716661392,-618.22,0.00053972,120]
[320933097,1711716661401,-7484.31,0.00053972,120]
[320933098,1711716661411,-708.95,0.00053972,120]
[320933099,1711716661421,-756.87,0.00053972,120]
[320933100,1711716661430,-500.0,0.00053972,120]
[320933101,1711716661439,-1441.43,0.00053972,120]
[320933102,1711716661449,-1273.33,0.00053972,120]
[320933103,1711716661458,-674.57,0.00053972,120]
[320933104,1711716661467,-275179.98305742,0.00054,2]
[320933105,1711716661476,-271119.77717463,0.00054,2]
[320933106,1711716661485,-173.23721594,0.00054,2]
[320933107,1711716661495,-267.31111111,0.00054027,120]
[320933108,1711716661504,-368.33,0.00054044,2]
[320933109,1711716661513,-1000.0,0.00054074,120]
[320933110,1711716661522,-500.0,0.0005409,120]
[320933111,1711716661531,-152.66,0.000541,7]
[320933112,1711716661541,-152.66,0.000541,7]
[320933113,1711716661550,-152.66,0.000541,7]
[320933114,1711716661559,-152.66,0.000541,7]
[320933115,1711716661568,-152.66,0.000541,7]
[320933116,1711716661577,-152.66,0.000541,7]
[320933117,1711716661587,-152.66,0.000541,7]
[320933118,1711716661596,-152.66,0.000541,7]
[320933119,1711716661605,-152.66,0.000541,7]
[320933120,1711716661614,-152.66,0.000541,7]
[320933121,1711716661623,-152.66,0.000541,7]
[320933122,1711716661633,-152.66,0.000541,7]
[320933123,1711716661642,-152.66,0.000541,7]
[320933124,1711716661651,-152.66,0.000541,7]
[320933125,1711716661660,-2835.29,0.000541,7]
[320933126,1711716661670,-2835.29,0.000541,7]
[320933127,1711716661679,-2835.29,0.000541,7]
[320933128,1711716661689,-2835.29,0.000541,7]
[320933129,1711716661698,-2835.29,0.000541,7]
[320933130,1711716661707,-2835.29,0.000541,7]
[320933131,1711716661717,-2835.29,0.000541,7]
[320933132,1711716661726,-2835.29,0.000541,7]
[320933133,1711716661735,-2835.29,0.000541,7]
[320933134,1711716661746,-2835.29,0.000541,7]
[320933135,1711716661755,-2835.29,0.000541,7]
[320933136,1711716661764,-2835.29,0.000541,7]
[320933137,1711716661774,-2835.29,0.000541,7]
[320933138,1711716661783,-2835.29,0.000541,7]
[320933139,1711716661793,-2835.29,0.000541,7]
[320933140,1711716661802,-2835.29,0.000541,7]
[320933141,1711716661811,-2835.29,0.000541,7]
[320933142,1711716661820,-2835.29,0.000541,7]
[320933143,1711716661830,-2835.29,0.000541,7]
[320933144,1711716661839,-2835.29,0.000541,7]
[320933145,1711716661849,-1014.64,0.000541,2]
[320933146,1711716661858,-300.98,0.000541,2]
[320933147,1711716661867,-5800.0,0.00054117,7]
[320933148,1711716661877,-5800.0,0.00054125,7]
[320933149,1711716661886,-5800.0,0.00054134,7]
[320933150,1711716661895,-586.09,0.00054137,120]
[320933151,1711716661904,-623.33,0.00054137,120]
[320933152,1711716661913,-592.42,0.00054137,120]
[320933153,1711716661922,-500.0,0.00054137,120]
[320933154,1711716661931,-500.0,0.00054137,120]
[320933155,1711716661940,-500.0,0.00054137,120]
[320933156,1711716661949,-500.0,0.00054137,120]
[320933157,1711716661959,-691.21,0.00054137,120]
[320933158,1711716661968,-720.43,0.00054137,120]
[320933159,1711716661977,-3679.89,0.00054137,120]
[320933160,1711716661986,-874.18,0.00054137,120]
[320933161,1711716661997,-523.45,0.00054137,120]
[320933162,1711716662007,-2750.62,0.00054137,120]
[320933163,1711716662017,-500.0,0.00054137,120]
[320933164,1711716662026,-5800.0,0.00054142,7]
[320933165,1711716662035,-346.065842,0.00054148,110]
[320933166,1711716662044,-5800.0,0.00054151,7]
[320933167,1711716662053,-5800.0,0.00054159,7]
[320933168,1711716662062,-5800.0,0.00054168,7]
[320933169,1711716662071,-5800.0,0.00054176,7]
[320933170,1711716662081,-5800.0,0.00054185,7]
[320933171,1711716662091,-5800.0,0.00054193,7]
[320933172,1711716662101,-151.032716,0.00054198,106]
[320933173,1711716662111,-5800.0,0.00054202,7]
[320933174,1711716662120,-5800.0,0.0005421,7]
[320933175,1711716662130,-1000.0,0.00054218,120]
[320933176,1711716662139,-5800.0,0.00054219,7]
[320933177,1711716662149,-5800.0,0.00054227,7]
[320933178,1711716662158,-5800.0,0.00054236,7]
[320933179,1711716662167,-5800.0,0.00054244,7]
[320933180,1711716662177,-1782.96,0.00054246,120]
[320933181,1711716662187,-903.7,0.00054246,120]
[320933182,1711716662196,-270.98072584,0.00054246,120]
[320933183,1711716662205,-606.26,0.00054246,120]
[320933184,1711716662215,-1141.6,0.00054246,120]
[320933185,1711716662224,-809.83,0.00054246,120]
[320933186,1711716662234,-502.1,0.00054246,120]
[320933187,1711716662245,-4769.79,0.00054246,120]
[320933188,1711716662255,-650.47,0.00054246,120]
[320933189,1711716662265,-528.43,0.00054246,120]
[320933190,1711716662275,-534.25,0.00054246,21]
[320933191,1711716662284,-500.0,0.00054246,120]
[320933192,1711716662294,-500.0,0.00054246,120]
[320933193,1711716662304,-536.75816276,0.00054246,120]
[320933194,1711716662314,-1337.23,0.00054246,120]
[320933195,1711716662326,-576.41,0.00054246,120]
[320933196,1711716662336,-935.52,0.00054246,120]
[320933197,1711716662345,-609.11,0.00054246,120]
[320933198,1711716662355,-500.0,0.00054246,120]
[320933199,1711716662364,-531.05,0.00054246,120]
[320933200,1711716662374,-1000.44,0.00054246,120]
[320933201,1711716662383,-731.96,0.00054246,120]
[320933202,1711716662393,-1153.11,0.00054246,120]
[320933203,1711716662405,-999.05,0.00054246,120]
[320933204,1711716662414,-999.22,0.00054246,120]
[320933205,1711716662423,-1603.08,0.00054246,120]
[320933206,1711716662433,-641.15,0.00054246,120]
[320933207,1711716662442,-616.6,0.00054246,120]
[320933208,1711716662451,-1045.1,0.00054246,120]
[320933209,1711716662460,-500.0,0.00054246,120]
[320933210,1711716662470,-505.71,0.00054246,120]
[320933211,1711716662479,-678.59,0.00054246,120]
[320933212,1711716662490,-581.67,0.00054246,120]
[320933213,1711716662501,-500.0,0.00054246,120]
[320933214,1711716662511,-732.12,0.00054246,120]
[320933215,1711716662520,-509.86,0.00054246,120]
[320933216,1711716662529,-1070.64,0.00054246,120]
[320933217,1711716662539,-779.78,0.00054246,120]
[320933218,1711716662548,-500.0,0.00054246,120]
[320933219,1711716662558,-1366.39,0.00054246,120]
[320933220,1711716662567,-566.51,0.00054246,120]
[320933221,1711716662577,-500.0,0.00054246,120]
[320933222,1711716662586,-1473.55,0.00054246,120]
[320933223,1711716662596,-541.19,0.00054246,120]
[320933224,1711716662605,-542.47,0.00054246,120]
[320933225,1711716662615,-520.06,0.00054246,120]
[320933226,1711716662625,-500.0,0.00054246,120]
[320933227,1711716662634,-618.22,0.00054246,120]
[320933228,1711716662644,-7484.31,0.00054246,120]
[320933229,1711716662653,-708.95,0.00054246,120]
[320933230,1711716662663,-756.87,0.00054246,120]
[320933231,1711716662673,-500.0,0.00054246,120]
[320933232,1711716662683,-1441.43,0.00054246,120]
[320933233,1711716662693,-1273.33,0.00054246,120]
[320933234,1711716662702,-674.57,0.00054246,120]
[320933235,1711716662712,-168.45304086,0.00054322,100]
[320933236,1711716662721,-157.032921,0.00054348,114]
[320933237,1711716662731,-1000.0,0.00054362,120]
[320933238,1711716662741,-300.98,0.00054385,2]
[320933239,1711716662751,-586.09,0.00054411,120]
[320933240,1711716662760,-623.33,0.00054411,120]
[320933241,1711716662769,-592.42,0.00054411,120]
[320933242,1711716662778,-500.0,0.00054411,120]
[320933243,1711716662788,-604.92179892,0.00054411,120]
[320933244,1711716662797,-500.0,0.00054411,120]
[320933245,1711716662807,-500.0,0.00054411,120]
[320933246,1711716662816,-691.21,0.00054411,120]
[320933247,1711716662829,-720.43,0.00054411,120]
[320933248,1711716662839,-3679.89,0.00054411,120]
[320933249,1711716662848,-874.18,0.00054411,120]
[320933250,1711716662858,-523.45,0.00054411,120]
[320933251,1711716662867,-2750.62,0.00054411,120]
[320933252,1711716662877,-500.0,0.00054411,120]
[320933253,1711716662887,-322.065842,0.00054448,113]
[320933254,1711716662896,-302.065838,0.00054448,116]
[320933255,1711716662906,-151.032714,0.00054498,107]
[320933256,1711716662916,-1000.0,0.00054506,120]
[320933257,1711716662925,-1782.96,0.0005452,120]
[320933258,1711716662935,-903.7,0.0005452,120]
[320933259,1711716662944,-606.26,0.0005452,120]
[320933260,1711716662953,-1141.6,0.0005452,120]
[320933261,1711716662963,-809.83,0.0005452,120]
[320933262,1711716662972,-502.1,0.0005452,120]
[320933263,1711716662982,-4769.79,0.0005452,120]
[320933264,1711716662991,-650.47,0.0005452,120]
[320933265,1711716663001,-528.43,0.0005452,120]
[320933266,1711716663010,-534.25,0.0005452,21]
[320933267,1711716663020,-500.0,0.0005452,120]
[320933268,1711716663030,-556.25650551,0.0005452,120]
[320933269,1711716663040,-1337.23,0.0005452,120]
[320933270,1711716663050,-576.41,0.0005452,120]
[320933271,1711716663059,-935.52,0.0005452,120]
[320933272,1711716663069,-609.11,0.0005452,120]
[320933273,1711716663078,-500.0,0.0005452,120]
[320933274,1711716663088,-531.05,0.0005452,120]
[320933275,1711716663098,-731.96,0.0005452,120]
[320933276,1711716663107,-1153.11,0.0005452,120]
[320933277,1711716663117,-999.05,0.0005452,120]
[320933278,1711716663127,-999.22,0.0005452,120]
[320933279,1711716663136,-1603.08,0.0005452,120]
[320933280,1711716663146,-641.15,0.0005452,120]
[320933281,1711716663156,-616.6,0.0005452,120]
[320933282,1711716663165,-1045.1,0.0005452,120]
[320933283,1711716663175,-500.0,0.0005452,120]
[320933284,1711716663185,-505.71,0.0005452,120]
[320933285,1711716663194,-678.59,0.0005452,120]
[320933286,1711716663204,-581.67,0.0005452,120]
[320933287,1711716663214,-500.0,0.0005452,120]
[320933288,1711716663223,-732.12,0.0005452,120]
[320933289,1711716663233,-509.86,0.0005452,120]
[320933290,1711716663243,-1070.64,0.0005452,120]
[320933291,1711716663254,-779.78,0.0005452,120]
[320933292,1711716663263,-291.71564585,0.0005452,120]
[320933293,1711716663273,-1366.39,0.0005452,120]
[320933294,1711716663283,-566.51,0.0005452,120]
[320933295,1711716663293,-500.0,0.0005452,120]
[320933296,1711716663303,-1473.55,0.0005452,120]
[320933297,1711716663312,-541.19,0.0005452,120]
[320933298,1711716663323,-542.47,0.0005452,120]
[320933299,1711716663335,-520.06,0.0005452,120]
[320933300,1711716663345,-500.0,0.0005452,120]
[320933301,1711716663356,-618.22,0.0005452,120]
[320933302,1711716663367,-7484.31,0.0005452,120]
[320933303,1711716663377,-708.95,0.0005452,120]
[320933304,1711716663387,-756.87,0.0005452,120]
[320933305,1711716663398,-500.0,0.0005452,120]
[320933306,1711716663409,-1441.43,0.0005452,120]
[320933307,1711716663419,-1273.33,0.0005452,120]
[320933308,1711716663428,-674.57,0.0005452,120]
[320933309,1711716663438,-151.69724403,0.0005455,61]
[320933310,1711716663448,-342.57516618,0.0005455,2]
[320933311,1711716663458,-1014.64,0.00054565,2]
[320933312,1711716663468,-208.03707595,0.000546,7]
[320933313,1711716663477,-267.31111111,0.0005463,120]
[320933314,1711716663487,-1000.0,0.0005465,120]
[320933315,1711716663499,-586.09,0.00054685,120]
[320933316,1711716663509,-623.33,0.00054685,120]
[320933317,1711716663518,-592.42,0.00054685,120]
[320933318,1711716663528,-500.0,0.00054685,120]
[320933319,1711716663537,-500.0,0.00054685,120]
[320933320,1711716663547,-500.0,0.00054685,120]
[320933321,1711716663557,-691.21,0.00054685,120]
[320933322,1711716663567,-720.43,0.00054685,120]
[320933323,1711716663577,-3679.89,0.00054685,120]
[320933324,1711716663586,-874.18,0.00054685,120]
[320933325,1711716663596,-523.45,0.00054685,120]
[320933326,1711716663605,-2750.62,0.00054685,120]
[320933327,1711716663615,-500.0,0.00054685,120]
[320933328,1711716663625,-154.69988666,0.00054697,60]
[320933329,1711716663634,-1256.8,0.00054794,120]
[320933330,1711716663644,-1256.8,0.00054794,120]
[320933331,1711716663654,-1256.8,0.00054794,120]
[320933332,1711716663663,-1256.8,0.00054794,120]
[320933333,1711716663672,-1256.8,0.00054794,120]
[320933334,1711716663681,-1256.8,0.00054794,120]
[320933335,1711716663692,-1256.8,0.00054794,120]
[320933336,1711716663702,-1256.8,0.00054794,120]
[320933337,1711716663712,-1256.8,0.00054794,120]
[320933338,1711716663721,-1256.8,0.00054794,120]
[320933339,1711716663731,-1256.8,0.00054794,120]
[320933340,1711716663743,-1256.8,0.00054794,120]
[320933341,1711716663752,-1256.8,0.00054794,120]
[320933342,1711716663762,-1256.8,0.00054794,120]
[320933343,1711716663772,-1256.8,0.00054794,120]
[320933344,1711716663782,-1256.8,0.00054794,120]
[320933345,1711716663792,-1256.8,0.00054794,120]
[320933346,1711716663803,-1256.8,0.00054794,120]
[320933347,1711716663813,-1256.8,0.00054794,120]
[320933348,1711716663823,-1256.8,0.00054794,120]
[320933349,1711716663834,-1256.8,0.00054794,120]
[320933350,1711716663844,-500.0,0.00054794,120]
[320933351,1711716663853,-500.0,0.00054794,120]
[320933352,1711716663863,-500.0,0.00054794,120]
[320933353,1711716663873,-500.0,0.00054794,120]
[320933354,1711716663883,-500.0,0.00054794,120]
[320933355,1711716663893,-500.0,0.00054794,120]
[320933356,1711716663902,-500.0,0.00054794,120]
[320933357,1711716663912,-500.0,0.00054794,120]
[320933358,1711716663922,-263.85132664,0.00054794,120]
[320933359,1711716663932,-500.0,0.00054794,120]
[320933360,1711716663942,-314.17176105,0.00054794,120]
[320933361,1711716663952,-666.0,0.00054794,120]
[320933362,1711716663963,-1782.96,0.00054794,120]
[320933363,1711716663974,-1061.14085781,0.00054794,120]
[320933364,1711716663984,-903.7,0.00054794,120]
[320933365,1711716663997,-606.26,0.00054794,120]
[320933366,1711716664006,-1141.6,0.00054794,120]
[320933367,1711716664017,-809.83,0.00054794,120]
[320933368,1711716664027,-502.1,0.00054794,120]
[320933369,1711716664037,-4769.79,0.00054794,120]
[320933370,1711716664047,-650.47,0.00054794,120]
[320933371,1711716664057,-528.43,0.00054794,120]
[320933372,1711716664068,-1000.0,0.00054794,120]
[320933373,1711716664078,-1000.0,0.00054794,120]
[320933374,1711716664087,-1000.0,0.00054794,120]
[320933375,1711716664098,-1000.0,0.00054794,120]
[320933376,1711716664108,-1000.0,0.00054794,120]
[320933377,1711716664118,-1113.94863823,0.00054794,120]
[320933378,1711716664128,-534.25,0.00054794,21]
[320933379,1711716664139,-500.0,0.00054794,120]
[320933380,1711716664150,-1337.23,0.00054794,120]
[320933381,1711716664161,-576.41,0.00054794,120]
[320933382,1711716664173,-935.52,0.00054794,120]
[320933383,1711716664329,-609.11,0.00054794,120]
[320933384,1711716664340,-300.6563706,0.00054794,120]
[320933385,1711716664350,-500.0,0.00054794,120]
[320933386,1711716664360,-531.05,0.00054794,120]
[320933387,1711716664370,-731.96,0.00054794,120]
[320933388,1711716664380,-1153.11,0.00054794,120]
[320933389,1711716664389,-999.05,0.00054794,120]
[320933390,1711716664398,-999.22,0.00054794,120]
[320933391,1711716664409,-1603.08,0.00054794,120]
[320933392,1711716664419,-641.15,0.00054794,120]
[320933393,1711716664428,-616.6,0.00054794,120]
[320933394,1711716664437,-1045.1,0.00054794,120]
[320933395,1711716664447,-311.93493575,0.00054794,120]
[320933396,1711716664456,-505.71,0.00054794,120]
[320933397,1711716664465,-678.59,0.00054794,120]
[320933398,1711716664475,-581.67,0.00054794,120]
[320933399,1711716664484,-500.0,0.00054794,120]
[320933400,1711716664497,-732.12,0.00054794,120]
[320933401,1711716664507,-509.86,0.00054794,120]
[320933402,1711716664517,-1070.64,0.00054794,120]
[320933403,1711716664527,-779.78,0.00054794,120]
[320933404,1711716664536,-1366.39,0.00054794,120]
[320933405,1711716664546,-566.51,0.00054794,120]
[320933406,1711716664556,-500.0,0.00054794,120]
[320933407,1711716664565,-1473.55,0.00054794,120]
[320933408,1711716664575,-541.19,0.00054794,120]
[320933409,1711716664584,-542.47,0.00054794,120]
[320933410,1711716664593,-520.06,0.00054794,120]
[320933411,1711716664603,-500.0,0.00054794,120]
[320933412,1711716664613,-618.22,0.00054794,120]
[320933413,1711716664623,-7484.31,0.00054794,120]
[320933414,1711716664633,-708.95,0.00054794,120]
[320933415,1711716664642,-756.87,0.00054794,120]
[320933416,1711716664651,-500.0,0.00054794,120]
[320933417,1711716664661,-1441.43,0.00054794,120]
[320933418,1711716664671,-1273.33,0.00054794,120]
[320933419,1711716664681,-674.57,0.00054794,120]
[320933420,1711716664690,-1233.17030467,0.00054795,120]
[320933421,1711716664700,-1000.0,0.00054795,13]
[320933422,1711716664709,-1000.0,0.00054795,13]
[320933423,1711716664718,-1000.0,0.00054795,13]
[320933424,1711716664728,-1000.0,0.00054795,13]
[320933425,1711716664755,-1000.0,0.00054795,13]
[320933426,1711716664765,-1000.0,0.00054795,13]
[320933427,1711716664776,-1000.0,0.00054795,13]
[320933428,1711716664786,-1000.0,0.00054795,13]
[320933429,1711716664796,-1000.0,0.00054795,13]
[320933430,1711716664807,-1000.0,0.00054795,13]
[320933431,1711716664818,-1000.0,0.00054795,13]
[320933432,1711716664828,-1000.0,0.00054795,13]
[320933433,1711716664838,-1000.0,0.00054795,13]
[320933434,1711716664848,-1000.0,0.00054795,13]
[320933435,1711716664858,-1000.0,0.00054795,13]
[320933436,1711716664868,-1000.0,0.00054795,13]
[320933437,1711716664877,-1000.0,0.00054795,13]
[320933438,1711716664887,-1000.0,0.00054795,13]
[320933439,1711716664897,-1000.0,0.00054795,13]
[320933440,1711716664907,-998.0,0.00054795,13]
[320933441,1711716664917,-500.0,0.00054795,120]
[320933442,1711716664927,-500.0,0.00054795,120]
[320933443,1711716664937,-500.0,0.00054795,120]
[320933444,1711716664947,-500.0,0.00054795,120]
[320933445,1711716664956,-500.0,0.00054795,120]
[320933446,1711716664965,-500.0,0.00054795,120]
[320933447,1711716664975,-500.0,0.00054795,120]
[320933448,1711716664984,-500.0,0.00054795,120]
[320933449,1711716664996,-500.0,0.00054795,120]
[320933450,1711716665006,-500.0,0.00054795,120]
[320933451,1711716665017,-500.0,0.00054795,120]
[320933452,1711716665028,-500.0,0.00054795,120]
[320933453,1711716665039,-500.0,0.00054795,120]
[320933454,1711716665050,-500.0,0.00054795,120]
[320933455,1711716665062,-500.0,0.00054795,120]
[320933456,1711716665074,-500.0,0.00054795,120]
[320933457,1711716665085,-500.0,0.00054795,120]
[320933458,1711716665095,-500.0,0.00054795,120]
[320933459,1711716665105,-500.0,0.00054795,120]
[320933460,1711716665116,-500.0,0.00054795,120]
[320933461,1711716665126,-500.0,0.00054795,120]
[320933462,1711716665136,-500.0,0.00054795,120]
[320933463,1711716665147,-500.0,0.00054795,120]
[320933464,1711716665157,-500.0,0.00054795,120]
[320933465,1711716665167,-883.0,0.00054795,120]
[320933466,1711716665177,-500.0,0.00054795,120]
[320933467,1711716665187,-500.0,0.00054795,120]
[320933468,1711716665198,-500.0,0.00054795,120]
[320933469,1711716665208,-822.0,0.00054795,120]
[320933470,1711716665218,-500.0,0.00054795,120]
[320933471,1711716665229,-500.0,0.00054795,120]
[320933472,1711716665241,-500.0,0.00054795,120]
[320933473,1711716665252,-500.0,0.00054795,120]
[320933474,1711716665262,-500.0,0.00054795,120]
[320933475,1711716665272,-500.0,0.00054795,120]
[320933476,1711716665282,-500.0,0.00054795,120]
[320933477,1711716665292,-500.0,0.00054795,120]
[320933478,1711716665302,-500.0,0.00054795,120]
[320933479,1711716665312,-500.0,0.00054795,120]
[320933480,1711716665325,-500.0,0.00054795,120]
[320933481,1711716665336,-500.0,0.00054795,120]
[320933482,1711716665346,-500.0,0.00054795,120]
[320933483,1711716665357,-500.0,0.00054795,120]
[320933484,1711716665367,-500.0,0.00054795,120]
[320933485,1711716665379,-500.0,0.00054795,120]
[320933486,1711716665389,-500.0,0.00054795,120]
[320933487,1711716665400,-500.0,0.00054795,120]
[320933488,1711716665411,-500.0,0.00054795,120]
[320933489,1711716665423,-840.0,0.00054795,120]
[320933490,1711716665437,-500.0,0.00054795,120]
[320933491,1711716665448,-500.0,0.00054795,120]
[320933492,1711716665458,-500.0,0.00054795,120]
[320933493,1711716665470,-500.0,0.00054795,120]
[320933494,1711716665481,-500.0,0.00054795,120]
[320933495,1711716665492,-500.0,0.00054795,120]
[320933496,1711716665503,-500.0,0.00054795,120]
[320933497,1711716665514,-500.0,0.00054795,120]
[320933498,1711716665525,-500.0,0.00054795,120]
[320933499,1711716665536,-500.0,0.00054795,120]
[320933500,1711716665547,-500.0,0.00054795,120]
[320933501,1711716665557,-500.0,0.00054795,120]
[320933502,1711716665567,-500.0,0.00054795,120]
[320933503,1711716665577,-500.0,0.00054795,120]
[320933504,1711716665588,-500.0,0.00054795,120]
[320933505,1711716665598,-500.0,0.00054795,120]
[320933506,1711716665608,-500.0,0.00054795,120]
[320933507,1711716665618,-500.0,0.00054795,120]
[320933508,1711716665628,-500.0,0.00054795,120]
[320933509,1711716665637,-500.0,0.00054795,120]
[320933510,1711716665647,-500.0,0.00054795,120]
[320933511,1711716665655,-500.0,0.00054795,120]
[320933512,1711716665664,-500.0,0.00054795,120]
[320933513,1711716665673,-500.0,0.00054795,120]
[320933514,1711716665682,-500.0,0.00054795,120]
[320933515,1711716665691,-500.0,0.00054795,120]
[320933516,1711716665702,-500.0,0.00054795,120]
[320933517,1711716665712,-500.0,0.00054795,120]
[320933518,1711716665722,-500.0,0.00054795,120]
[320933519,1711716665731,-500.0,0.00054795,120]
[320933520,1711716665743,-500.0,0.00054795,120]
[320933521,1711716665753,-500.0,0.00054795,120]
[320933522,1711716665762,-500.0,0.00054795,120]
[320933523,1711716665772,-500.0,0.00054795,120]
[320933524,1711716665782,-500.0,0.00054795,120]
[320933525,1711716665791,-500.0,0.00054795,120]
[320933526,1711716665801,-500.0,0.00054795,120]
[320933527,1711716665815,-500.0,0.00054795,120]
[320933528,1711716665827,-500.0,0.00054795,120]
[320933529,1711716665837,-500.0,0.00054795,120]
[320933530,1711716665848,-500.0,0.00054795,120]
[320933531,1711716665858,-500.0,0.00054795,120]